bitfinex-derivatives/quotes_SOLF0:USTF0_20240824
["timestamp","ask_amount","ask_price","bid_price","bid_amount"]
[1724537968943,0.04085711,158.83,158.8,0.04248393]
[1724537969242,3.1468,158.82,158.8,0.04248393]
[1724537969844,3.18745711,158.83,158.8,0.04248393]
[1724537970637,3.1469,158.82,158.8,0.04248393]
[1724537972041,3.147,158.81,158.8,0.04248393]
[1724537972241,0.04085711,158.83,158.8,0.04248393]
[1724537972639,3.1469,158.82,158.8,0.04248393]
[1724537975243,3.147,158.81,158.8,0.04248393]
[1724537977540,0.04085711,158.83,158.8,27.22248393]
[1724537978443,3.18755711,158.83,158.8,21.79248393]
[1724537979435,23.2579,158.94,158.82,21.75]
[1724537979639,3.1925,158.93,158.82,21.75]
[1724537980453,0.04542454,158.89,158.86,0.04121795]
[1724537984339,3.1457,158.88,158.86,0.04121795]
[1724537986852,3.19092454,158.89,158.86,0.04121795]
[1724537987148,0.04542454,158.89,158.86,0.04121795]
[1724537988442,0.04542454,158.89,158.87,3.1458]
[1724537989243,0.04542454,158.89,158.86,0.04121795]
[1724537989648,0.04542454,158.89,158.86,3.18711795]
[1724537990154,0.04542454,158.89,158.87,3.1457]
[1724537990349,0.04542454,158.89,158.86,0.04121795]
[1724537990846,3.19082454,158.89,158.86,0.04121795]
[1724537991049,0.04542454,158.89,158.86,0.04121795]
[1724537991643,3.19082454,158.89,158.86,0.04121795]
[1724537993960,3.1456,158.88,158.86,0.04121795]
[1724537994354,0.04542454,158.89,158.86,0.04121795]
[1724537994660,3.19092454,158.89,158.86,0.04121795]
[1724537995161,0.04542454,158.89,158.86,0.04121795]
[1724537995461,0.04542454,158.89,158.86,3.18701795]
[1724537997066,0.04542454,158.89,158.87,3.1457]
[1724537998163,0.04542454,158.89,158.86,3.18711795]
[1724538000771,0.04542454,158.89,158.87,3.1458]
[1724538002576,1.6553,158.96,158.88,21.76]
[1724538002767,1.6553,158.96,158.91,21.76]
[1724538002980,1.6533,158.97,158.93,21.76]
[1724538003276,6.2826,159.1,158.95,21.76]
[1724538003277,1.582,159.03,158.95,21.76]
[1724538003672,0.04182292,159.01,158.97,0.04442828]
[1724538004375,0.04182292,159.01,158.97,21.80442828]
[1724538004677,0.04182292,159.01,158.97,0.04442828]
[1724538005576,3.1432,159.0,158.97,0.04442828]
[1724538006082,3.1434,158.99,158.97,0.04442828]
[1724538006274,0.04182292,159.01,158.97,0.04442828]
[1724538007377,3.1433,159.0,158.97,0.04442828]
[1724538008572,3.1433,159.0,158.97,3.18822828]
[1724538009179,3.1433,159.0,158.97,0.04442828]
[1724538009876,3.18482292,159.01,158.97,21.80442828]
[1724538010074,1.6744,159.07,158.99,21.76]
[1724538010472,1.6744,159.07,158.99,24.9034]
[1724538011187,3.1425,159.04,159.01,0.04068736]
[1724538012181,3.18883256,159.05,159.01,0.04068736]
[1724538013790,0.04653256,159.05,159.01,0.04068736]
[1724538014185,3.1427,159.03,159.01,0.04068736]
[1724538015194,3.1428,159.02,159.01,0.04068736]
[1724538016198,3.1426,159.03,159.01,0.04068736]
[1724538016392,0.04653256,159.05,159.01,0.04068736]
[1724538018092,3.1426,159.03,159.01,0.04068736]
[1724538018701,3.1425,159.04,159.01,0.04068736]
[1724538019000,0.04653256,159.05,159.01,0.04068736]
[1724538019390,3.1425,159.04,159.01,0.04068736]
[1724538020300,3.1427,159.03,159.01,0.04068736]
[1724538025003,21.72,159.04,158.84,6.2927]
[1724538025205,21.72,158.98,158.89,21.72]
[1724538025503,24.91279849,158.98,158.89,3.14061214]
[1724538025710,1.6273,158.97,158.87,66.22002809]
[1724538026103,0.04516721,158.94,158.9,0.04192382]
[1724538026701,3.145,158.91,158.9,0.04192382]
[1724538027005,21.72,158.92,158.82,29.1]
[1724538027505,3.1456,158.89,158.85,3.146]
[1724538027903,3.18834501,158.89,158.85,3.19070765]
[1724538028102,3.18834501,158.89,158.86,3.1459]
[1724538028103,0.04274501,158.89,158.86,3.1459]
[1724538028306,0.04274501,158.89,158.85,0.04470765]
[1724538030310,0.04274501,158.89,158.86,3.1459]
[1724538032201,3.18814501,158.89,158.86,3.1459]
[1724538032407,0.04274501,158.89,158.85,0.04470765]
[1724538032809,3.1456,158.88,158.85,0.04470765]
[1724538033218,0.04274501,158.89,158.85,0.04470765]
[1724538035415,3.1456,158.88,158.85,0.04470765]
[1724538036911,1.613,158.93,158.87,21.72]
[1724538037407,3.1449,158.92,158.87,24.8656]
[1724538037914,0.04622892,158.91,158.88,0.04158512]
[1724538038414,0.04622892,158.91,158.9,21.72]
[1724538038711,1.6273,158.97,158.9,21.72]
[1724538038712,3.1441,158.96,158.92,3.1448]
[1724538038909,1.6273,158.97,158.92,21.72]
[1724538039307,3.144,158.96,158.92,24.8646]
[1724538039710,3.18485549,158.96,158.92,24.91208293]
[1724538041117,0.04085549,158.96,158.92,24.93208293]
[1724538041714,3.18485549,158.96,158.92,24.93208293]
[1724538042813,254.16,159.14,158.95,3.1442]
[1724538043019,24.9353,159.05,158.95,21.74]
[1724538043220,28.02336003,159.05,158.95,21.74]
[1724538043522,3.1953,159.05,158.97,21.74]
[1724538044115,0.04394774,159.03,158.99,0.04603549]
[1724538044616,0.04394774,159.03,159.0,3.143]
[1724538045722,3.18654774,159.03,158.99,24.92933549]
[1724538047019,3.1429,159.02,158.99,0.04603549]
[1724538047523,0.04394774,159.03,158.99,0.04603549]
[1724538048223,3.18664774,159.03,158.99,3.18943549]
[1724538048721,0.04394774,159.03,159.0,3.1431]
[1724538048923,0.04394774,159.03,158.99,0.04603549]
[1724538050728,3.1431,159.01,158.99,0.04603549]
[1724538050921,0.04394774,159.03,158.99,0.04603549]
[1724538051117,3.1432,159.0,158.99,0.04603549]
[1724538053119,3.143,159.01,158.99,0.04603549]
[1724538054228,3.1432,159.0,158.99,0.04603549]
[1724538054725,3.1438,158.97,158.91,21.74]
[1724538055117,21.74,158.97,158.81,25.14]
[1724538055335,21.74,158.97,158.87,21.74]
[1724538055721,3.1447,158.93,158.9,0.04260866]
[1724538056031,21.74,158.93,158.9,0.04199672]
[1724538056224,25.015,158.93,158.9,0.04199672]
[1724538056425,3.145,158.91,158.9,0.04199672]
[1724538057028,3.1456,158.89,158.83,21.74]
[1724538057225,21.74,158.92,158.82,3.1074072]
[1724538057428,21.74,158.92,158.81,21.74]
[1724538057720,3.1454,158.89,158.81,21.74]
[1724538057924,3.1454,158.89,158.81,24.94234266]
[1724538058119,3.1454,158.89,158.84,3.1463]
[1724538058323,21.74,158.92,158.81,24.94234266]
[1724538058528,0.04639777,158.87,158.83,0.04479395]
[1724538058831,3.1462,158.85,158.83,0.04479395]
[1724538059631,21.78639777,158.87,158.83,0.04479395]
[1724538060134,3.1463,158.85,158.83,0.04479395]
[1724538060532,3.1463,158.85,158.8,3.1471]
[1724538060533,3.1467,158.83,158.78,3.1476]
[1724538061332,3.1467,158.83,158.79,3.1473]
[1724538061525,3.19072483,158.83,158.79,3.19212189]
[1724538061727,0.04402483,158.83,158.79,3.19212189]
[1724538063136,0.04402483,158.83,158.81,3.1469]
[1724538063327,0.04402483,158.83,158.79,21.78482189]
[1724538063833,0.04402483,158.83,158.79,0.04482189]
[1724538064227,3.19062483,158.83,158.79,0.04482189]
[1724538064427,0.04402483,158.83,158.79,0.04482189]
[1724538064933,3.147,158.82,158.79,0.04482189]
[1724538065138,0.04402483,158.83,158.79,0.04482189]
[1724538065330,3.1472,158.8,158.79,0.04482189]
[1724538066225,21.74,158.81,158.69,21.74]
[1724538066425,21.74,158.81,158.71,21.74]
[1724538066626,21.74,158.81,158.74,3.1483]
[1724538067029,3.1474,158.79,158.74,3.1483]
[1724538067225,0.04172739,158.78,158.75,0.0474013]
[1724538067831,3.18942739,158.78,158.75,0.0474013]
[1724538068632,0.04172739,158.78,158.75,0.0474013]
[1724538068829,0.04172739,158.78,158.76,21.74]
[1724538069537,0.04172739,158.78,158.77,3.1478]
[1724538071129,0.04172739,158.78,158.76,21.74]
[1724538071333,0.04172739,158.78,158.76,24.8879]
[1724538071734,0.04172739,158.78,158.77,3.1478]
[1724538072037,4.893,158.91,158.77,21.74]
[1724538072331,4.893,158.91,158.85,21.74]
[1724538072527,4.893,158.91,158.82,21.74]
[1724538072726,21.74,158.9,158.79,21.74]
[1724538072934,3.1463,158.85,158.83,0.04107713]
[1724538073131,0.04670913,158.86,158.83,0.04107713]
[1724538073634,0.04670913,158.86,158.83,3.18757713]
[1724538076129,0.04670913,158.86,158.83,0.04107713]
[1724538077436,3.1462,158.85,158.83,0.04107713]
[1724538078141,3.1464,158.84,158.83,0.04107713]
[1724538079040,0.04670913,158.86,158.83,0.04107713]
[1724538080236,3.19270913,158.86,158.83,0.04107713]
[1724538080436,0.04670913,158.86,158.83,21.78107713]
[1724538081344,0.04670913,158.86,158.84,3.1462]
[1724538081644,0.04670913,158.86,158.83,21.78107713]
[1724538081841,0.04670913,158.86,158.84,3.1464]
[1724538082042,0.04670913,158.86,158.83,21.78107713]
[1724538082543,0.04670913,158.86,158.85,3.1462]
[1724538083643,0.04670913,158.86,158.83,21.78107713]
[1724538083644,0.04670913,158.86,158.84,3.1463]
[1724538084340,0.04670913,158.86,158.83,24.92757713]
[1724538084546,0.04670913,158.86,158.83,3.18757713]
[1724538084940,0.04670913,158.86,158.83,0.04107713]
[1724538085443,3.1462,158.85,158.83,0.04107713]
[1724538085747,0.04670913,158.86,158.83,0.04107713]
[1724538086050,3.1463,158.85,158.83,0.04107713]
[1724538086836,3.1464,158.84,158.83,0.04107713]
[1724538088552,21.74,158.85,158.75,21.74]
[1724538088941,21.74,158.85,158.75,24.91999842]
[1724538089343,21.74,158.85,158.78,0.0404226]
[1724538089543,0.04253746,158.82,158.78,3.1878226]
[1724538089746,0.04253746,158.82,158.78,0.0404226]
[1724538090049,1.64223746,158.82,158.78,0.0404226]
[1724538090548,3.1471,158.81,158.78,0.0404226]
[1724538090749,1.64223746,158.82,158.78,0.0404226]
[1724538090939,3.1471,158.81,158.78,0.0404226]
[1724538091454,21.74,158.81,158.7,21.74]
[1724538091748,21.74,158.79,158.68,21.74]
[1724538091949,21.74,158.77,158.68,21.74]
[1724538092351,21.74,158.77,158.63,1.2638]
[1724538092648,3.19052362,158.74,158.7,0.04578689]
[1724538092853,0.04212362,158.74,158.71,3.1488]
[1724538093044,0.04212362,158.74,158.7,21.74]
[1724538093242,0.04212362,158.74,158.71,0.04259383]
[1724538094447,0.04212362,158.74,158.71,3.19139383]
[1724538094648,1.74052362,158.74,158.71,0.04259383]
[1724538095348,0.04212362,158.74,158.71,0.04259383]
[1724538097452,21.78212362,158.74,158.71,0.04259383]
[1724538098359,3.1487,158.72,158.71,0.04259383]
[1724538099254,21.74,158.72,158.58,0.6031]
[1724538099452,21.74,158.7,158.6,21.74]
[1724538100261,0.04068622,158.67,158.63,0.04325711]
[1724538101653,0.04068622,158.67,158.64,3.1501]
[1724538103861,0.04068622,158.67,158.63,0.04325711]
[1724538103862,0.04068622,158.67,158.66,24.8899]
[1724538104062,1.5806,158.74,158.66,24.84768642]
[1724538104260,3.1486,158.73,158.69,3.1493]
[1724538104864,3.1484,158.74,158.68,21.74]
[1724538105163,0.04678527,158.73,158.69,0.04657637]
[1724538105360,3.19548527,158.73,158.69,0.04657637]
[1724538105656,0.04678527,158.73,158.69,0.04657637]
[1724538105856,1.6576,158.82,158.71,21.74]
[1724538105857,3.1472,158.8,158.71,21.74]
[1724538106064,3.1472,158.8,158.74,21.74]
[1724538106267,1.6576,158.82,158.74,21.74]
[1724538106462,1.6576,158.82,158.75,27.2]
[1724538106657,1.6576,158.82,158.73,27.2]
[1724538106860,0.0478959,158.79,158.76,3.18984875]
[1724538108658,0.0478959,158.79,158.77,3.1477]
[1724538108963,0.0478959,158.79,158.76,0.04204875]
[1724538109463,3.1477,158.78,158.76,0.04204875]
[1724538109863,0.0478959,158.79,158.76,0.04204875]
[1724538110760,3.1952959,158.79,158.76,0.04204875]
[1724538112667,0.0478959,158.79,158.76,0.04204875]
[1724538112863,0.0478959,158.79,158.77,3.1476]
[1724538113363,0.0478959,158.79,158.76,0.04204875]
[1724538115061,3.1477,158.78,158.76,0.04204875]
[1724538115756,3.1477,158.77,158.76,0.04204875]
[1724538116761,3.1476,158.78,158.76,0.04204875]
[1724538116966,0.0478959,158.79,158.76,0.04204875]
[1724538117465,3.1953959,158.79,158.76,0.04204875]
[1724538119169,3.1476,158.78,158.76,0.04204875]
[1724538119664,0.0478959,158.79,158.76,0.04204875]
[1724538120463,3.1476,158.78,158.76,0.04204875]
[1724538121367,3.1952959,158.79,158.76,0.04204875]
[1724538122062,0.0478959,158.79,158.76,0.04204875]
[1724538122566,0.0478959,158.79,158.76,3.18984875]
[1724538123063,0.0478959,158.79,158.76,0.04204875]
[1724538123770,3.1952959,158.79,158.76,0.04204875]
[1724538124073,0.0478959,158.79,158.76,0.04204875]
[1724538125867,1.5371,158.83,158.71,3.1489]
[1724538125868,3.1483,158.75,158.71,3.1489]
[1724538126177,27.2,158.78,158.67,27.2]
[1724538126476,3.1485,158.74,158.7,3.1491]
[1724538126863,3.1486,158.73,158.7,0.04615814]
[1724538128372,21.82318988,158.74,158.7,0.04615814]
[1724538128772,3.1488,158.72,158.7,0.04615814]
[1724538129169,0.04318988,158.74,158.7,0.04615814]
[1724538129970,0.04318988,158.74,158.71,21.78]
[1724538131374,0.04318988,158.74,158.72,21.78]
[1724538131673,0.04318988,158.74,158.73,3.1485]
[1724538138165,0.04318988,158.74,158.72,3.1487]
[1724538139471,0.04318988,158.74,158.71,3.1489]
[1724538140271,0.04318988,158.74,158.7,0.04615814]
[1724538141174,3.1487,158.73,158.7,0.04615814]
[1724538141478,0.04318988,158.74,158.7,0.04615814]
[1724538141679,3.1486,158.73,158.7,0.04615814]
[1724538142872,3.1488,158.72,158.7,0.04615814]
[1724538143475,0.04318988,158.74,158.7,0.04615814]
[1724538143877,3.1488,158.72,158.7,0.04615814]
[1724538146874,0.04318988,158.74,158.7,0.04615814]
[1724538147272,0.04318988,158.74,158.72,21.78]
[1724538147472,0.04318988,158.74,158.73,3.1485]
[1724538148084,3.1473,158.8,158.76,3.1478]
[1724538148983,3.1518,158.81,158.72,21.78]
[1724538148984,24.9318,158.81,158.72,21.78]
[1724538149181,0.04699199,158.78,158.75,0.04252921]
[1724538150376,3.19459199,158.78,158.75,0.04252921]
[1724538152684,0.04699199,158.78,158.75,3.19062921]
[1724538153298,3.19459199,158.78,158.75,3.19062921]
[1724538153475,0.04699199,158.78,158.75,3.19062921]
[1724538154285,0.04699199,158.78,158.76,3.1478]
[1724538154681,0.04699199,158.78,158.75,0.04252921]
[1724538154877,0.04699199,158.78,158.75,3.19062921]
[1724538155079,0.04699199,158.78,158.75,0.04252921]
[1724538155584,3.19459199,158.78,158.75,0.04252921]
[1724538155783,0.04699199,158.78,158.75,0.04252921]
[1724538156188,3.1479,158.76,158.75,0.04252921]
[1724538158488,3.1486,158.73,158.67,21.78]
[1724538158690,21.78,158.75,158.6,46.34996872]
[1724538158880,3.1823,158.74,158.64,21.78]
[1724538159086,3.1823,158.74,158.65,2.86545766]
[1724538159389,3.1488,158.72,158.67,3.1496]
[1724538159583,0.04134272,158.71,158.68,0.04106067]
[1724538161390,0.04134272,158.71,158.68,3.19056067]
[1724538161590,0.04134272,158.71,158.68,21.82106067]
[1724538162298,0.04134272,158.71,158.69,3.1493]
[1724538162892,0.04134272,158.71,158.7,3.1491]
[1724538163594,0.04134272,158.71,158.69,3.1493]
[1724538165993,0.04134272,158.71,158.68,21.82106067]
[1724538166195,0.04134272,158.71,158.66,3.09883905]
[1724538166196,3.2159,158.78,158.7,21.78]
[1724538167092,0.04558457,158.76,158.72,0.04246594]
[1724538167294,3.19368457,158.76,158.72,3.19106594]
[1724538167494,0.04558457,158.76,158.72,0.04246594]
[1724538168090,3.19348457,158.76,158.72,3.19116594]
[1724538168295,0.04558457,158.76,158.72,0.04246594]
[1724538168700,3.1485,158.74,158.72,0.04246594]
[1724538169497,1.65608457,158.76,158.72,0.04246594]
[1724538169498,3.1485,158.73,158.72,0.04246594]
[1724538172099,3.1491,158.71,158.66,21.78]
[1724538172694,21.78,158.75,158.66,21.78]
[1724538172997,3.1488,158.72,158.67,2.86453352]
[1724538173200,0.04510175,158.71,158.68,0.0426602]
[1724538173703,0.04510175,158.71,158.68,3.1920602]
[1724538175400,0.04510175,158.71,158.7,3.1491]
[1724538175602,0.04510175,158.71,158.68,0.0426602]
[1724538175796,0.04510175,158.71,158.7,3.1491]
[1724538177002,0.04510175,158.71,158.69,24.9293]
[1724538177205,0.04510175,158.71,158.69,3.1493]
[1724538177700,0.04510175,158.71,158.68,3.1921602]
[1724538182914,3.19410175,158.71,158.68,0.0426602]
[1724538183107,0.04510175,158.71,158.68,0.0426602]
[1724538184204,3.19410175,158.71,158.68,0.0426602]
[1724538185310,3.19410175,158.71,158.68,3.1921602]
[1724538185507,3.19410175,158.71,158.68,0.0426602]
[1724538185703,3.1493,158.69,158.68,0.0426602]
[1724538187204,3.1492,158.7,158.68,0.0426602]
[1724538187404,0.04510175,158.71,158.68,0.0426602]
[1724538187712,3.1499,158.67,158.6,67.90226872]
[1724538187907,3.1499,158.67,158.61,2.86709202]
[1724538188111,3.1499,158.67,158.62,2.86709202]
[1724538188413,3.1499,158.67,158.63,3.1504]
[1724538188804,3.1502,158.65,158.6,67.90226872]
[1724538189009,23.4631,158.69,158.63,0.04383877]
[1724538189010,0.0466939,158.67,158.63,0.04383877]
[1724538189713,3.1501,158.66,158.63,0.04383877]
[1724538191817,3.1965939,158.67,158.63,3.19433877]
[1724538195215,0.0466939,158.67,158.64,3.1503]
[1724538196618,3.1963939,158.67,158.64,3.1503]
[1724538196912,14.45,158.74,158.66,11.8599]
[1724538197116,3.149,158.71,158.66,15.0187021]
[1724538197514,1.3208,158.73,158.68,8.71]
[1724538197715,1.6632,158.75,158.72,8.71]
[1724538197920,1.70783908,158.75,158.73,3.1484]
[1724538198116,1.70783908,158.75,158.72,8.75102899]
[1724538198117,0.04463908,158.75,158.74,8.71]
[1724538198617,0.04463908,158.75,158.74,3.1483]
[1724538198815,0.04463908,158.75,158.72,21.80102899]
[1724538199224,0.04463908,158.75,158.74,3.1483]
[1724538200919,0.04463908,158.75,158.73,3.1485]
[1724538201614,0.04463908,158.75,158.72,0.04102899]
[1724538202321,3.19283908,158.75,158.72,0.04102899]
[1724538202708,0.04463908,158.75,158.72,0.04102899]
[1724538203109,3.19283908,158.75,158.72,0.04102899]
[1724538203320,0.04463908,158.75,158.72,0.04102899]
[1724538203722,3.1485,158.74,158.72,0.04102899]
[1724538204221,3.1488,158.72,158.67,21.76]
[1724538205119,3.1488,158.72,158.68,3.1494]
[1724538205321,3.18898853,158.72,158.68,3.19578833]
[1724538206718,3.149,158.71,158.68,0.04638833]
[1724538206921,0.04018853,158.72,158.68,0.04638833]
[1724538208523,3.149,158.71,158.68,0.04638833]
[1724538210415,3.18898853,158.72,158.68,3.19578833]
[1724538210616,0.04018853,158.72,158.69,21.76]
[1724538212318,0.04018853,158.72,158.69,24.9092]
[1724538212523,0.04018853,158.72,158.69,21.76]
[1724538213526,0.04018853,158.72,158.7,3.149]
[1724538214423,0.04018853,158.72,158.69,24.9093]
[1724538214628,0.04018853,158.72,158.68,0.04638833]
[1724538215719,3.18908853,158.72,158.68,3.19588833]
[1724538217132,3.18908853,158.72,158.69,3.1493]
[1724538219134,3.1491,158.71,158.68,0.04638833]
[1724538219531,21.80018853,158.72,158.68,0.04638833]
[1724538220427,21.76,158.7,158.6,67.88226872]
[1724538220621,21.76,158.7,158.61,2.86724223]
[1724538220822,3.1498,158.67,158.63,3.1504]
[1724538221532,3.19536873,158.67,158.63,3.17665887]
[1724538223234,3.15,158.66,158.63,3.17665887]
[1724538223933,3.1502,158.65,158.63,0.02625887]
[1724538226137,3.1503,158.64,158.63,0.02625887]
[1724538226336,2.6559,158.66,158.63,0.02625887]
[1724538226934,3.1501,158.65,158.63,0.02625887]
[1724538228639,3.1503,158.64,158.63,0.02625887]
[1724538228834,11.8603,158.64,158.63,0.02625887]
[1724538229432,3.1507,158.62,158.58,3.1514]
[1724538229838,3.1507,158.62,158.57,8.71]
[1724538230136,3.1507,158.62,158.58,2.86846959]
[1724538230338,3.19636846,158.62,158.57,8.71]
[1724538230537,0.04566846,158.62,158.59,3.1513]
[1724538233339,0.04566846,158.62,158.6,3.1511]
[1724538234441,0.04566846,158.62,158.59,3.1513]
[1724538237144,3.19636846,158.62,158.59,3.1513]
[1724538237346,0.04566846,158.62,158.58,3.1515]
[1724538237546,0.04566846,158.62,158.55,21.79]
[1724538237849,0.04566846,158.62,158.56,2.86862924]
[1724538238052,0.04566846,158.62,158.57,3.1517]
[1724538238854,3.151,158.61,158.58,3.1514]
[1724538239851,3.1512,158.6,158.57,3.1517]
[1724538240157,3.1512,158.6,158.55,21.79]
[1724538241145,3.1513,158.59,158.55,21.79]
[1724538241345,3.19885209,158.59,158.55,21.79]
[1724538241555,3.19885209,158.59,158.55,24.942]
[1724538241947,3.19885209,158.59,158.55,3.152]
[1724538242144,3.1516,158.58,158.53,21.79]
[1724538242351,3.1516,158.58,158.54,6.02150888]
[1724538242551,21.83755209,158.59,158.37,45.60785204]
[1724538242846,21.83755209,158.59,158.49,21.79]
[1724538242847,0.04441687,158.52,158.49,21.79]
[1724538243049,0.04627061,158.52,158.5,3.22765058]
[1724538243252,0.04627061,158.52,158.47,27.51]
[1724538243454,0.04121368,158.51,158.49,3.1531]
[1724538243752,0.04830996,158.52,158.49,3.1324601]
[1724538244059,0.04830996,158.52,158.47,27.51]
[1724538244265,0.04830996,158.52,158.42,25.2]
[1724538244566,0.04724305,158.49,158.3,225.0]
[1724538244758,21.79,158.5,158.31,26.25626479]
[1724538244951,0.04478208,158.41,158.32,5.72]
[1724538245161,60.32330458,158.54,158.4,21.79]
[1724538245451,60.32330458,158.54,158.47,3.1537]
[1724538245852,60.32330458,158.54,158.48,3.1535]
[1724538246051,60.32330458,158.54,158.45,21.79]
[1724538246357,0.04296789,158.51,158.48,0.04019733]
[1724538246752,0.04296789,158.51,158.48,21.83019733]
[1724538246951,0.04296789,158.51,158.5,21.79]
[1724538247158,0.04296789,158.51,158.5,24.9431]
[1724538247455,0.04296789,158.51,158.5,21.79]
[1724538247959,0.04296789,158.51,158.48,21.83019733]
[1724538248351,0.04296789,158.51,158.5,21.79]
[1724538249553,21.79,158.68,158.5,21.79]
[1724538249554,1.3282,158.58,158.5,21.79]
[1724538249758,1.3282,158.58,158.52,21.79]
[1724538249956,1.3282,158.58,158.54,3.1522]
[1724538250164,3.1511,158.61,158.54,21.79]
[1724538250353,21.79,158.61,158.52,21.79]
[1724538250552,3.1513,158.6,158.53,3.1525]
[1724538250962,3.1513,158.6,158.52,21.79]
[1724538251355,0.04453776,158.58,158.55,0.04320436]
[1724538254457,8.76453776,158.58,158.55,0.04320436]
[1724538255262,3.1519,158.57,158.55,0.04320436]
[1724538256659,3.1519,158.56,158.55,0.04320436]
[1724538256858,0.04453776,158.58,158.55,0.04320436]
[1724538258463,21.8,158.57,158.55,0.04320436]
[1724538258761,1.3065,158.56,158.55,0.04320436]
[1724538258971,2.6316,158.56,158.55,0.04320436]
[1724538259265,3.1521,158.55,158.49,3.1532]
[1724538259963,2.6316,158.56,158.48,3.21143391]
[1724538260160,5.72,158.6,158.47,5.72]
[1724538260161,0.04778188,158.54,158.51,21.8]
[1724538260365,0.04778188,158.54,158.51,0.04412893]
[1724538260568,0.04778188,158.54,158.51,3.19692893]
[1724538261865,0.04778188,158.54,158.52,3.1527]
[1724538262057,0.04778188,158.54,158.51,21.84412893]
[1724538262264,0.04778188,158.54,158.53,21.8]
[1724538262464,32.0112,158.63,158.53,21.8]
[1724538262663,7.0605,158.63,158.56,21.8]
[1724538262862,7.0605,158.63,158.56,24.9519]
[1724538263070,7.0605,158.63,158.56,21.8]
[1724538263466,0.04019815,158.61,158.57,0.03987762]
[1724538264172,0.04019815,158.61,158.59,3.1513]
[1724538264477,0.04019815,158.61,158.58,21.8]
[1724538264769,0.04019815,158.61,158.57,0.03987762]
[1724538264966,0.04019815,158.61,158.57,3.19157762]
[1724538265169,0.04019815,158.61,158.57,0.03987762]
[1724538265972,3.1513,158.6,158.57,0.03987762]
[1724538266967,3.19109815,158.61,158.57,0.03987762]
[1724538267669,3.1511,158.6,158.57,0.03987762]
[1724538268268,0.04019815,158.61,158.57,0.03987762]
[1724538268585,21.8,158.58,158.5,5.7]
[1724538268971,21.8,158.58,158.51,3.1527]
[1724538269171,21.8,158.58,158.47,21.8]
[1724538269172,21.8,158.58,158.47,27.5]
[1724538269367,21.8,158.56,158.49,3.1532]
[1724538269575,0.04216311,158.54,158.51,0.04268924]
[1724538270665,21.84216311,158.54,158.51,0.04268924]
[1724538270869,3.1527,158.52,158.51,0.04268924]
[1724538271067,21.8,158.54,158.46,3.1537]
[1724538271470,21.8,158.52,158.46,3.1537]
[1724538272169,3.19924601,158.51,158.43,21.8]
[1724538272372,0.04634601,158.51,158.45,21.8]
[1724538273274,0.04634601,158.51,158.47,3.1535]
[1724538273974,0.04634601,158.51,158.45,21.8]
[1724538274167,0.04634601,158.51,158.49,3.1532]
[1724538274369,0.04634601,158.51,158.45,21.8]
[1724538274775,0.04634601,158.51,158.48,3.1533]
[1724538276076,0.04634601,158.51,158.47,3.1536]
[1724538277274,3.19924601,158.51,158.47,3.1536]
[1724538277474,0.04634601,158.51,158.45,3.1539]
[1724538277676,1.32454601,158.51,158.45,3.1539]
[1724538277868,3.1531,158.5,158.42,5.7]
[1724538278071,0.04491556,158.48,158.42,5.7]
[1724538278271,0.04491556,158.48,158.45,3.1539]
[1724538278870,0.04491556,158.48,158.46,3.1539]
[1724538280467,0.04491556,158.48,158.47,3.1537]
[1724538282468,0.04491556,158.48,158.47,24.9537]
[1724538282670,2.695,158.55,158.51,3.1527]
[1724538283376,5.8472,158.55,158.51,3.1527]
[1724538283772,5.89245083,158.55,158.51,3.199481]
[1724538284482,3.1524,158.54,158.51,0.046781]
[1724538287886,3.1524,158.54,158.51,3.199681]
[1724538288384,3.1523,158.54,158.51,0.046781]
[1724538288982,2.74025083,158.55,158.51,0.046781]
[1724538290186,3.1523,158.54,158.51,0.046781]
[1724538291586,24.54025083,158.55,158.51,0.046781]
[1724538292198,3.1527,158.53,158.51,0.046781]
[1724538293280,3.1527,158.52,158.51,0.046781]
[1724538294092,3.1531,158.51,158.33,25.22]
[1724538294290,21.8,158.52,158.43,5.68]
[1724538294884,3.1531,158.5,158.46,3.1537]
[1724538295283,3.19804059,158.5,158.46,3.1537]